[Event "FIDE Women World Rapid 2024"]
[Site "New York"]
[Date "2024.12.27"]
[Round "8.20"]
[White "Foisor, Sabina-Francesca"]
[Black "Munkhzul, Davaakhuu"]
[Result "1-0"]
[ECO "D05"]
[WhiteElo "2222"]
[BlackElo "2138"]
[Annotator "ChessBase"]
[PlyCount "65"]
[EventDate "2024.12.14"]
[EventType "swiss"]
[EventCountry "USA"]
[SourceTitle "playchess.com"]
[Source "ChessBase"]
[SourceQuality "1"]
[TimeControl "900+10"]

1. d4 {[%emt 0:00:01]} Nf6 {[%emt 0:00:01]} 2. Nf3 {[%emt 0:00:02]} d5 {[%emt 0:00:05]} 3. e3 {[%emt 0:00:09]} e6 {[%emt 0:00:26]} 4. b3 {[%emt 0:00:03]} b6 {[%emt 0:00:05]} 5. Bb2 {[%emt 0:00:01]} Bb7 {[%emt 0:00:01]} 6. Nbd2 {[%emt 0:00:02]} Nbd7 {[%emt 0:00:21]} 7. Bd3 {[%emt 0:00:20]} Bd6 {[%emt 0:00:06]} 8. Ne5 {[%emt 0:00:11]} c5 {[%emt 0:00:24]} 9. O-O {[%emt 0:00:31]} Qc7 {[%emt 0:00:47]} 10. f4 {[%emt 0:00:07]} O-O {[%emt 0:00:08]} 11. Nxd7 {[%emt 0:02:19]} Nxd7 {[%emt 0:00:09]} 12. Nf3 {[%emt 0:01:16]} f5 {[%emt 0:00:31]} 13. Ng5 {[%emt 0:00:47]} Rae8 {[%emt 0:00:08]} 14. dxc5 {[%emt 0:00:28]} Bxc5 {[%emt 0:01:08]} 15. Re1 {[%emt 0:04:57]} Qxf4 {[%emt 0:01:07]} 16. Qh5 {[%emt 0:00:31]} Bxe3+ {[%emt 0:00:05]} 17. Rxe3 {[%emt 0:00:24]} Qxe3+ {[%emt 0:00:02]} 18. Kh1 {[%emt 0:00:17]} h6 {[%emt 0:00:04]} 19. Nf3 {[%emt 0:00:16]} d4 {[%emt 0:01:49]} 20. Nxd4 {[%emt 0:00:21]} Nf6 {[%emt 0:03:01]} 21. Qh4 {[%emt 0:00:42]} Ng4 {[%emt 0:00:36]} 22. Rf1 {[%emt 0:01:05]} Qd2 {[%emt 0:02:17]} 23. Nf3 {[%emt 0:00:36]} Bxf3 {[%emt 0:00:15]} 24. gxf3 {[%emt 0:00:10]} Nf6 {[%emt 0:00:29]} 25. Rg1 {[%emt 0:00:40]} Kh7 {[%emt 0:01:41]} 26. Qg3 {[%emt 0:00:40]} g5 {[%emt 0:00:23]} 27. Bc1 {[%emt 0:01:12]} Qb4 {[%emt 0:00:07]} 28. Bxg5 {[%emt 0:00:25]} hxg5 {[%emt 0:00:56]} 29. Qxg5 {[%emt 0:00:29]} Rg8 {[%emt 0:00:06]} 30. Bxf5+ {[%emt 0:00:09]} exf5 {[%emt 0:00:01]} 31. Qxf5+ {[%emt 0:00:01]} Kh6 {[%emt 0:00:04]} 32. Qxf6+ {[%emt 0:00:11]} Kh7 {[%emt 0:00:01]} 33. Qf5+ {[%emt 0:00:03]} 1-0

[Event "FIDE Women World Rapid 2024"]
[Site "New York"]
[Date "2024.12.27"]
[Round "8.21"]
[White "Pourkashiyan, Atousa"]
[Black "Melekhina, Alisa"]
[Result "1-0"]
[ECO "C41"]
[WhiteElo "2255"]
[BlackElo "2176"]
[Annotator "ChessBase"]
[PlyCount "55"]
[EventDate "2024.12.14"]
[EventType "swiss"]
[EventCountry "USA"]
[SourceTitle "playchess.com"]
[Source "ChessBase"]
[SourceQuality "1"]
[TimeControl "900+10"]

1. e4 {[%emt 0:00:01]} d6 {[%emt 0:00:02]} 2. d4 {[%emt 0:00:02]} Nf6 {[%emt 0:00:03]} 3. Nc3 {[%emt 0:00:02]} e5 {[%emt 0:00:13]} 4. Nf3 {[%emt 0:00:06]} Nbd7 {[%emt 0:00:03]} 5. Bc4 {[%emt 0:00:05]} Be7 {[%emt 0:00:04]} 6. O-O {[%emt 0:00:10]} h6 {[%emt 0:00:34]} 7. a4 {[%emt 0:00:32]} c6 {[%emt 0:00:14]} 8. a5 {[%emt 0:00:15]} Qc7 {[%emt 0:00:34]} 9. Re1 {[%emt 0:00:10]} g5 {[%emt 0:01:41]} 10. Be3 {[%emt 0:00:51]} Rg8 {[%emt 0:02:23]} 11. Bf1 {[%emt 0:03:56]} Nf8 {[%emt 0:00:23]} 12. d5 {[%emt 0:00:29]} cxd5 {[%emt 0:02:29]} 13. Nxd5 {[%emt 0:00:40]} Nxd5 {[%emt 0:00:13]} 14. Qxd5 {[%emt 0:00:12]} Bd7 {[%emt 0:01:20]} 15. a6 {[%emt 0:00:33]} Bc6 {[%emt 0:00:43]} 16. Bb5 {[%emt 0:00:04]} Nd7 {[%emt 0:01:53]} 17. Qc4 {[%emt 0:00:23]} Rc8 {[%emt 0:01:02]} 18. axb7 {[%emt 0:00:06]} Bxb7 {[%emt 0:01:31]} 19. Qxc7 {[%emt 0:00:04]} Rxc7 {[%emt 0:00:02]} 20. Rxa7 {[%emt 0:00:02]} Kd8 {[%emt 0:00:31]} 21. Nd2 {[%emt 0:00:22]} Kc8 {[%emt 0:00:17]} 22. c3 {[%emt 0:00:51]} Kb8 {[%emt 0:00:23]} 23. Rea1 {[%emt 0:00:20]} Rgc8 {[%emt 0:00:16]} 24. R7a2 {[%emt 0:00:46]} d5 {[%emt 0:00:17]} 25. Ba7+ {[%emt 0:00:16]} Ka8 {[%emt 0:00:07]} 26. Bc5+ {[%emt 0:00:04]} Kb8 {[%emt 0:00:38]} 27. Bxe7 {[%emt 0:00:02]} Nc5 {[%emt 0:01:22]} 28. Bd6 {[%emt 0:00:08]} 1-0

[Event "FIDE Women World Rapid 2024"]
[Site "New York"]
[Date "2024.12.27"]
[Round "8.21"]
[White "Paragua, Megan Althea"]
[Black "Song, Yuxin"]
[Result "1/2-1/2"]
[ECO "B30"]
[WhiteElo "2185"]
[BlackElo "2384"]
[Annotator "ChessBase"]
[PlyCount "135"]
[EventDate "2024.12.14"]
[EventType "swiss"]
[EventCountry "USA"]
[SourceTitle "playchess.com"]
[Source "ChessBase"]
[SourceQuality "1"]
[TimeControl "900+10"]

1. e4 {[%emt 0:00:03]} c5 {[%emt 0:00:01]} 2. Nf3 {[%emt 0:00:01]} e6 {[%emt 0:00:01]} 3. Nc3 {[%emt 0:00:01]} Nc6 {[%emt 0:00:01]} 4. Bb5 {[%emt 0:00:14]} Nd4 {[%emt 0:00:02]} 5. Nxd4 {[%emt 0:00:02]} cxd4 {[%emt 0:00:01]} 6. Ne2 {[%emt 0:00:01]} a6 {[%emt 0:00:24]} 7. Bd3 {[%emt 0:00:04]} Bc5 {[%emt 0:00:43]} 8. O-O {[%emt 0:00:08]} b5 {[%emt 0:00:20]} 9. c3 {[%emt 0:00:04]} dxc3 {[%emt 0:00:09]} 10. dxc3 {[%emt 0:00:02]} Bb7 {[%emt 0:00:06]} 11. a4 {[%emt 0:00:04]} bxa4 {[%emt 0:00:31]} 12. Rxa4 {[%emt 0:00:07]} Ne7 {[%emt 0:00:06]} 13. Ng3 {[%emt 0:00:25]} Ng6 {[%emt 0:01:11]} 14. Qe2 {[%emt 0:00:27]} a5 {[%emt 0:00:26]} 15. Be3 {[%emt 0:00:09]} Bxe3 {[%emt 0:00:11]} 16. Qxe3 {[%emt 0:00:03]} Bc6 {[%emt 0:00:02]} 17. Ra2 {[%emt 0:00:02]} O-O {[%emt 0:01:34]} 18. Rfa1 {[%emt 0:00:03]} Qc7 {[%emt 0:00:24]} 19. Ne2 {[%emt 0:01:22]} f5 {[%emt 0:03:41]} 20. exf5 {[%emt 0:02:00]} exf5 {[%emt 0:00:01]} 21. Nd4 {[%emt 0:02:30]} Bd5 {[%emt 0:01:42]} 22. c4 {[%emt 0:00:18]} Rae8 {[%emt 0:00:15]} 23. Qd2 {[%emt 0:00:58]} Ba8 {[%emt 0:02:22]} 24. Rxa5 {[%emt 0:01:55]} Ne5 {[%emt 0:00:01]} 25. Bf1 {[%emt 0:01:16]} Ng4 {[%emt 0:00:01]} 26. f4 {[%emt 0:00:19]} Ne3 {[%emt 0:00:25]} 27. Re1 {[%emt 0:01:19]} Nxc4 {[%emt 0:01:19]} 28. Bxc4+ {[%emt 0:01:04]} Qxc4 {[%emt 0:00:00]} 29. Rxe8 {[%emt 0:00:40]} Rxe8 {[%emt 0:00:01]} 30. Re5 {[%emt 0:00:01]} Rxe5 {[%emt 0:00:10]} 31. fxe5 {[%emt 0:00:02]} Qd5 {[%emt 0:00:49]} 32. Nf3 {[%emt 0:00:13]} Qxd2 {[%emt 0:00:06]} 33. Nxd2 {[%emt 0:00:01]} Kf7 {[%emt 0:00:00]} 34. Nb3 {[%emt 0:00:44]} f4 {[%emt 0:00:26]} 35. Nc5 {[%emt 0:00:14]} Bc6 {[%emt 0:00:01]} 36. e6+ {[%emt 0:00:10]} dxe6 {[%emt 0:00:13]} 37. Nd3 {[%emt 0:00:02]} Kf6 {[%emt 0:00:19]} 38. Nxf4 {[%emt 0:00:01]} Ke5 {[%emt 0:00:00]} 39. Ne2 {[%emt 0:00:15]} g5 {[%emt 0:00:05]} 40. Kf2 {[%emt 0:00:04]} Ke4 {[%emt 0:00:00]} 41. g3 {[%emt 0:00:26]} e5 {[%emt 0:00:19]} 42. Nc3+ {[%emt 0:00:14]} Kd3 {[%emt 0:00:04]} 43. Nd1 {[%emt 0:00:01]} e4 {[%emt 0:00:16]} 44. Ne3 {[%emt 0:00:01]} Bd7 {[%emt 0:00:01]} 45. Nd5 {[%emt 0:00:02]} Be6 {[%emt 0:00:05]} 46. Ne3 {[%emt 0:00:04]} Bd7 {[%emt 0:00:37]} 47. Nd5 {[%emt 0:00:01]} Kd2 {[%emt 0:00:01]} 48. Ne3 {[%emt 0:00:04]} Bb5 {[%emt 0:00:22]} 49. Nf5 {[%emt 0:00:05]} Ba6 {[%emt 0:00:25]} 50. Ne3 {[%emt 0:00:03]} Kc1 {[%emt 0:00:25]} 51. Nd5 {[%emt 0:00:10]} Bb7 {[%emt 0:00:10]} 52. Nf6 {[%emt 0:00:27]} Kd2 {[%emt 0:00:06]} 53. Ng4 {[%emt 0:00:01]} h5 {[%emt 0:00:38]} 54. Ne3 {[%emt 0:00:01]} Kd3 {[%emt 0:00:01]} 55. Nf1 {[%emt 0:00:03]} Bc8 {[%emt 0:00:30]} 56. Ne3 {[%emt 0:00:03]} Be6 {[%emt 0:00:04]} 57. Nf1 {[%emt 0:00:01]} Bh3 {[%emt 0:00:33]} 58. Ne3 {[%emt 0:00:01]} Be6 {[%emt 0:00:04]} 59. Nf1 {[%emt 0:00:01]} Bc4 {[%emt 0:00:12]} 60. Ne3 {[%emt 0:00:02]} Bb5 {[%emt 0:00:01]} 61. Nf1 {[%emt 0:00:04]} Kc2 {[%emt 0:00:06]} 62. Ne3+ {[%emt 0:00:05]} Kd2 {[%emt 0:00:15]} 63. Nd5 {[%emt 0:00:02]} Bd3 {[%emt 0:00:09]} 64. Ne3 {[%emt 0:00:03]} Kc1 {[%emt 0:00:06]} 65. Nd5 {[%emt 0:00:06]} Kd2 {[%emt 0:00:07]} 66. Ne3 {[%emt 0:00:01]} Kc1 {[%emt 0:00:02]} 67. Nd5 {[%emt 0:00:01]} Kd2 {[%emt 0:00:01]} 68. Ne3 {[%emt 0:00:01]} 1/2-1/2

[Event "FIDE Women World Rapid 2024"]
[Site "New York"]
[Date "2024.12.27"]
[Round "8.22"]
[White "Mammadzada, Gunay"]
[Black "Cori T., Deysi"]
[Result "1/2-1/2"]
[ECO "C11"]
[WhiteElo "2421"]
[BlackElo "2353"]
[Annotator "ChessBase"]
[PlyCount "113"]
[EventDate "2024.12.14"]
[EventType "swiss"]
[EventCountry "USA"]
[SourceTitle "playchess.com"]
[Source "ChessBase"]
[SourceQuality "1"]
[TimeControl "900+10"]

1. e4 {[%emt 0:00:02]} e6 {[%emt 0:00:01]} 2. d4 {[%emt 0:00:05]} d5 {[%emt 0:00:01]} 3. Nc3 {[%emt 0:00:02]} Nf6 {[%emt 0:00:03]} 4. e5 {[%emt 0:00:01]} Nfd7 {[%emt 0:00:01]} 5. f4 {[%emt 0:00:04]} c5 {[%emt 0:00:01]} 6. Nf3 {[%emt 0:00:02]} Nc6 {[%emt 0:00:02]} 7. Be3 {[%emt 0:00:02]} Be7 {[%emt 0:00:02]} 8. Qd2 {[%emt 0:00:41]} O-O {[%emt 0:00:03]} 9. dxc5 {[%emt 0:00:11]} Nxc5 {[%emt 0:00:09]} 10. O-O-O {[%emt 0:00:41]} Rb8 {[%emt 0:00:29]} 11. Kb1 {[%emt 0:00:34]} b5 {[%emt 0:00:29]} 12. Bxc5 {[%emt 0:01:44]} Bxc5 {[%emt 0:00:01]} 13. Bd3 {[%emt 0:00:25]} f5 {[%emt 0:01:26]} 14. exf6 {[%emt 0:04:06]} Qxf6 {[%emt 0:00:02]} 15. Ne2 {[%emt 0:00:01]} Bd6 {[%emt 0:04:19]} 16. Ng5 {[%emt 0:02:47]} g6 {[%emt 0:00:02]} 17. h4 {[%emt 0:00:02]} h6 {[%emt 0:05:41]} 18. Nf3 {[%emt 0:00:10]} Bxf4 {[%emt 0:00:32]} 19. Nxf4 {[%emt 0:00:23]} Qxf4 {[%emt 0:00:01]} 20. Qc3 {[%emt 0:01:17]} Ne7 {[%emt 0:00:03]} 21. Rhf1 {[%emt 0:00:33]} b4 {[%emt 0:01:25]} 22. Qc5 {[%emt 0:00:23]} Nf5 {[%emt 0:00:35]} 23. Bxf5 {[%emt 0:00:58]} Rxf5 {[%emt 0:01:21]} 24. Rfe1 {[%emt 0:02:09]} Rf8 {[%emt 0:01:38]} 25. Ne5 {[%emt 0:00:09]} Qf6 {[%emt 0:00:02]} 26. Qxa7 {[%emt 0:00:57]} Rb7 {[%emt 0:00:09]} 27. Qe3 {[%emt 0:00:09]} Kg7 {[%emt 0:00:39]} 28. Qd3 {[%emt 0:00:15]} Rc7 {[%emt 0:00:19]} 29. Ng4 {[%emt 0:00:41]} Qf4 {[%emt 0:00:07]} 30. Ne5 {[%emt 0:00:09]} Qf5 {[%emt 0:00:01]} 31. Qe2 {[%emt 0:00:15]} Rf6 {[%emt 0:00:22]} 32. g4 {[%emt 0:00:15]} Qf2 {[%emt 0:00:06]} 33. Qd3 {[%emt 0:00:15]} Qxh4 {[%emt 0:00:06]} 34. Re2 {[%emt 0:00:10]} Qg5 {[%emt 0:00:12]} 35. Qd4 {[%emt 0:00:08]} Kh7 {[%emt 0:00:03]} 36. Qxb4 {[%emt 0:00:10]} Ba6 {[%emt 0:00:03]} 37. Qb6 {[%emt 0:00:03]} Bxe2 {[%emt 0:00:22]} 38. Qxc7+ {[%emt 0:00:01]} Kg8 {[%emt 0:00:01]} 39. Re1 {[%emt 0:00:25]} Qd2 {[%emt 0:00:22]} 40. Rc1 {[%emt 0:00:12]} Qf4 {[%emt 0:00:14]} 41. Qc3 {[%emt 0:00:11]} d4 {[%emt 0:00:13]} 42. Qc8+ {[%emt 0:00:03]} Kg7 {[%emt 0:00:02]} 43. Qc7+ {[%emt 0:00:04]} Kg8 {[%emt 0:00:04]} 44. Qd8+ {[%emt 0:00:17]} Kg7 {[%emt 0:00:13]} 45. Qe7+ {[%emt 0:00:09]} Kg8 {[%emt 0:00:01]} 46. Qd8+ {[%emt 0:00:14]} Kg7 {[%emt 0:00:00]} 47. Qc7+ {[%emt 0:00:13]} Kg8 {[%emt 0:00:01]} 48. a4 {[%emt 0:00:05]} Bxg4 {[%emt 0:00:12]} 49. Rg1 {[%emt 0:00:12]} h5 {[%emt 0:00:23]} 50. Qc8+ {[%emt 0:00:02]} Rf8 {[%emt 0:00:00]} 51. Qc7 {[%emt 0:00:18]} Qe3 {[%emt 0:00:04]} 52. Rh1 {[%emt 0:00:11]} Qe4 {[%emt 0:00:08]} 53. Rc1 {[%emt 0:00:07]} Qf4 {[%emt 0:00:07]} 54. Re1 {[%emt 0:00:11]} Qg3 {[%emt 0:00:16]} 55. Rc1 {[%emt 0:00:10]} Qf4 {[%emt 0:00:21]} 56. Re1 {[%emt 0:00:07]} Qg3 {[%emt 0:00:12]} 57. Rc1 {[%emt 0:00:02]} 1/2-1/2

[Event "FIDE Women World Rapid 2024"]
[Site "New York"]
[Date "2024.12.27"]
[Round "8.22"]
[White "Castillo Beitia, Ashley Alexandra"]
[Black "Krasteva, Beloslava"]
[Result "0-1"]
[ECO "E12"]
[WhiteElo "2009"]
[BlackElo "2281"]
[Annotator "ChessBase"]
[PlyCount "118"]
[EventDate "2024.12.14"]
[EventType "swiss"]
[EventCountry "USA"]
[SourceTitle "playchess.com"]
[Source "ChessBase"]
[SourceQuality "1"]
[TimeControl "900+10"]

1. d4 {[%emt 0:00:02]} Nf6 {[%emt 0:00:02]} 2. c4 {[%emt 0:00:01]} e6 {[%emt 0:00:02]} 3. Nf3 {[%emt 0:00:02]} b6 {[%emt 0:00:18]} 4. a3 {[%emt 0:00:01]} Bb7 {[%emt 0:00:04]} 5. Nc3 {[%emt 0:00:06]} Ne4 {[%emt 0:00:04]} 6. Nxe4 {[%emt 0:00:18]} Bxe4 {[%emt 0:00:01]} 7. d5 {[%emt 0:00:05]} exd5 {[%emt 0:02:36]} 8. cxd5 {[%emt 0:00:02]} Be7 {[%emt 0:00:20]} 9. Qd4 {[%emt 0:00:48]} Bxf3 {[%emt 0:00:17]} 10. gxf3 {[%emt 0:01:07]} Bf6 {[%emt 0:00:51]} 11. Qe4+ {[%emt 0:00:59]} Kf8 {[%emt 0:00:31]} 12. Be3 {[%emt 0:01:13]} d6 {[%emt 0:00:17]} 13. Bd4 {[%emt 0:00:55]} Nd7 {[%emt 0:00:20]} 14. Rg1 {[%emt 0:01:20]} Nc5 {[%emt 0:00:18]} 15. Qe3 {[%emt 0:01:22]} Rg8 {[%emt 0:00:51]} 16. Rd1 {[%emt 0:00:52]} a5 {[%emt 0:02:18]} 17. Bh3 {[%emt 0:01:44]} a4 {[%emt 0:00:43]} 18. Bf5 {[%emt 0:00:24]} Bxd4 {[%emt 0:00:34]} 19. Rxd4 {[%emt 0:00:33]} Qf6 {[%emt 0:00:26]} 20. Bxh7 {[%emt 0:02:35]} Rh8 {[%emt 0:00:11]} 21. Bc2 {[%emt 0:00:15]} Rxh2 {[%emt 0:01:00]} 22. Qf4 {[%emt 0:00:13]} Qxf4 {[%emt 0:00:46]} 23. Rxf4 {[%emt 0:00:02]} Re8 {[%emt 0:00:10]} 24. Rfg4 {[%emt 0:00:47]} g6 {[%emt 0:00:16]} 25. Bxa4 {[%emt 0:00:30]} Re5 {[%emt 0:01:04]} 26. Bc2 {[%emt 0:00:01]} Rxd5 {[%emt 0:00:09]} 27. Rg5 {[%emt 0:00:01]} Rxg5 {[%emt 0:01:05]} 28. Rxg5 {[%emt 0:00:02]} Rh1+ {[%emt 0:00:02]} 29. Kd2 {[%emt 0:00:01]} Rf1 {[%emt 0:00:32]} 30. Rg2 {[%emt 0:00:25]} Ne6 {[%emt 0:00:09]} 31. e3 {[%emt 0:00:01]} Ke7 {[%emt 0:00:15]} 32. f4 {[%emt 0:00:25]} Kf6 {[%emt 0:00:09]} 33. Bb3 {[%emt 0:00:13]} Nc5 {[%emt 0:00:20]} 34. Bd5 {[%emt 0:00:09]} Na4 {[%emt 0:00:32]} 35. Kc2 {[%emt 0:00:30]} Re1 {[%emt 0:00:05]} 36. Bc4 {[%emt 0:00:03]} c6 {[%emt 0:00:14]} 37. Bd3 {[%emt 0:00:49]} Nc5 {[%emt 0:00:26]} 38. Kd2 {[%emt 0:00:41]} Ra1 {[%emt 0:00:07]} 39. f3 {[%emt 0:00:05]} Na4 {[%emt 0:00:49]} 40. Kc2 {[%emt 0:00:09]} Re1 {[%emt 0:00:09]} 41. e4 {[%emt 0:00:09]} Nc5 {[%emt 0:00:24]} 42. Re2 {[%emt 0:00:26]} Rxe2+ {[%emt 0:00:08]} 43. Bxe2 {[%emt 0:00:02]} Ne6 {[%emt 0:00:02]} 44. Ba6 {[%emt 0:00:42]} Nxf4 {[%emt 0:00:15]} 45. Bb7 {[%emt 0:00:01]} c5 {[%emt 0:00:05]} 46. Kd2 {[%emt 0:00:05]} Ke5 {[%emt 0:00:06]} 47. Ke3 {[%emt 0:00:04]} Ne6 {[%emt 0:00:21]} 48. Bd5 {[%emt 0:00:03]} g5 {[%emt 0:00:07]} 49. b4 {[%emt 0:00:07]} f6 {[%emt 0:00:53]} 50. bxc5 {[%emt 0:00:17]} dxc5 {[%emt 0:00:04]} 51. Bc4 {[%emt 0:00:11]} Nd4 {[%emt 0:00:03]} 52. a4 {[%emt 0:00:08]} Nc2+ {[%emt 0:00:26]} 53. Kd2 {[%emt 0:00:04]} Kd4 {[%emt 0:00:09]} 54. Bb5 {[%emt 0:00:23]} Ne3 {[%emt 0:00:11]} 55. Ke2 {[%emt 0:00:20]} Nc4 {[%emt 0:00:32]} 56. Kf2 {[%emt 0:00:26]} Ne5 {[%emt 0:00:18]} 57. Ke2 {[%emt 0:00:06]} c4 {[%emt 0:00:06]} 58. Kf2 {[%emt 0:00:19]} c3 {[%emt 0:00:06]} 59. Ke2 {[%emt 0:00:01]} Nxf3 {[%emt 0:00:09]} 0-1

[Event "FIDE Women World Rapid 2024"]
[Site "New York"]
[Date "2024.12.27"]
[Round "8.23"]
[White "Wagner, Dinara"]
[Black "Balajayeva, Khanim"]
[Result "1/2-1/2"]
[ECO "E05"]
[WhiteElo "2437"]
[BlackElo "2362"]
[Annotator "ChessBase"]
[PlyCount "47"]
[EventDate "2024.12.14"]
[EventType "swiss"]
[EventCountry "USA"]
[SourceTitle "playchess.com"]
[Source "ChessBase"]
[SourceQuality "1"]
[TimeControl "900+10"]

1. d4 {[%emt 0:00:01]} Nf6 {[%emt 0:00:01]} 2. c4 {[%emt 0:00:00]} e6 {[%emt 0:00:01]} 3. Nf3 {[%emt 0:00:01]} d5 {[%emt 0:00:01]} 4. g3 {[%emt 0:00:01]} Be7 {[%emt 0:00:01]} 5. Bg2 {[%emt 0:00:01]} O-O {[%emt 0:00:03]} 6. O-O {[%emt 0:00:07]} dxc4 {[%emt 0:00:01]} 7. Qa4 {[%emt 0:00:01]} a6 {[%emt 0:00:02]} 8. Qxc4 {[%emt 0:00:01]} b5 {[%emt 0:00:02]} 9. Qc2 {[%emt 0:00:01]} Bb7 {[%emt 0:00:02]} 10. Bf4 {[%emt 0:00:02]} Bd6 {[%emt 0:00:26]} 11. Nbd2 {[%emt 0:01:34]} Nbd7 {[%emt 0:02:34]} 12. Nb3 {[%emt 0:00:26]} Be4 {[%emt 0:00:46]} 13. Qc1 {[%emt 0:01:09]} Qe7 {[%emt 0:00:13]} 14. Rd1 {[%emt 0:00:47]} Nd5 {[%emt 0:01:30]} 15. Ne5 {[%emt 0:02:26]} Bxg2 {[%emt 0:01:10]} 16. Kxg2 {[%emt 0:00:20]} Nxf4+ {[%emt 0:02:11]} 17. gxf4 {[%emt 0:00:46]} Bxe5 {[%emt 0:00:40]} 18. dxe5 {[%emt 0:00:30]} c5 {[%emt 0:00:07]} 19. Rd6 {[%emt 0:00:07]} c4 {[%emt 0:00:06]} 20. Na5 {[%emt 0:01:17]} Nc5 {[%emt 0:00:50]} 21. Qe3 {[%emt 0:02:05]} Qc7 {[%emt 0:00:20]} 22. b4 {[%emt 0:02:23]} Nb7 {[%emt 0:01:15]} 23. Nxb7 {[%emt 0:00:02]} Qxb7+ {[%emt 0:00:00]} 24. Qf3 {[%emt 0:00:01]} 1/2-1/2

[Event "FIDE Women World Rapid 2024"]
[Site "New York"]
[Date "2024.12.27"]
[Round "8.23"]
[White "Naisanga Sheba Valentine"]
[Black "Machlik, Monika"]
[Result "0-1"]
[ECO "E11"]
[WhiteElo "1625"]
[BlackElo "2107"]
[Annotator "NA"]
[PlyCount "96"]
[EventDate "2024.12.14"]
[EventType "swiss"]
[EventCountry "USA"]
[SourceTitle "playchess.com"]
[Source "ChessBase"]
[SourceQuality "1"]
[TimeControl "900+10"]

1. d4 {[%emt 0:00:02]} Nf6 {[%emt 0:00:01]} 2. c4 {[%emt 0:00:02]} e6 {[%emt 0:00:01]} 3. g3 {[%emt 0:00:02]} Bb4+ {[%emt 0:00:44]} 4. Nd2 {[%emt 0:00:10]} O-O {[%emt 0:01:21]} 5. Ngf3 {[%emt 0:00:03]} d6 {[%emt 0:01:04]} 6. Bg2 {[%emt 0:00:10]} Nc6 {[%emt 0:01:14]} 7. O-O {[%emt 0:00:11]} Bxd2 {[%emt 0:00:34]} 8. Bxd2 {[%emt 0:00:25]} e5 {[%emt 0:00:33]} 9. dxe5 {[%emt 0:01:27]} dxe5 {[%emt 0:00:23]} 10. Bc3 {[%emt 0:00:09]} Qe7 {[%emt 0:00:20]} 11. Qc2 {[%emt 0:00:14]} Bg4 {[%emt 0:01:11]} 12. h3 {[%emt 0:00:11]} Bh5 {[%emt 0:00:19]} 13. Rad1 {[%emt 0:00:21]} Bg6 {[%emt 0:00:25]} 14. Qb3 {[%emt 0:00:43]} Rab8 {[%emt 0:00:09]} 15. Nh4 {[%emt 0:00:32]} Be4 {[%emt 0:00:41]} 16. f3 {[%emt 0:00:07]} Bg6 {[%emt 0:00:02]} 17. Nxg6 {[%emt 0:00:03]} hxg6 {[%emt 0:00:04]} 18. Kh2 {[%emt 0:00:25]} Nh5 {[%emt 0:00:58]} 19. Bd2 {[%emt 0:00:33]} Nd4 {[%emt 0:00:26]} 20. Qe3 {[%emt 0:01:34]} Nxg3 {[%emt 0:01:17]} 21. Rf2 {[%emt 0:01:22]} Ngf5 {[%emt 0:01:10]} 22. Qg5 {[%emt 0:00:25]} Qxg5 {[%emt 0:00:43]} 23. Bxg5 {[%emt 0:00:03]} Ne6 {[%emt 0:00:19]} 24. Bc1 {[%emt 0:00:21]} Rfd8 {[%emt 0:00:08]} 25. Rff1 {[%emt 0:00:03]} Nf4 {[%emt 0:00:34]} 26. e4 {[%emt 0:00:39]} Nd4 {[%emt 0:00:53]} 27. Rd2 {[%emt 0:00:51]} Nde2 {[%emt 0:01:25]} 28. Rfd1 {[%emt 0:00:27]} Rxd2 {[%emt 0:00:19]} 29. Rxd2 {[%emt 0:00:02]} Nxc1 {[%emt 0:00:05]} 30. b3 {[%emt 0:00:19]} Nce2 {[%emt 0:00:09]} 31. Rd7 {[%emt 0:00:18]} Nxg2 {[%emt 0:00:44]} 32. Kxg2 {[%emt 0:00:03]} c6 {[%emt 0:00:09]} 33. Kf2 {[%emt 0:00:21]} Nf4 {[%emt 0:00:04]} 34. h4 {[%emt 0:00:07]} Ne6 {[%emt 0:00:08]} 35. Ke3 {[%emt 0:00:10]} Kf8 {[%emt 0:00:04]} 36. b4 {[%emt 0:00:14]} Ke8 {[%emt 0:00:03]} 37. Rd6 {[%emt 0:00:07]} Rd8 {[%emt 0:00:11]} 38. Rxd8+ {[%emt 0:00:18]} Kxd8 {[%emt 0:00:00]} 39. a3 {[%emt 0:00:09]} Nf4 {[%emt 0:00:03]} 40. Kf2 {[%emt 0:00:10]} Kd7 {[%emt 0:00:04]} 41. Kg3 {[%emt 0:00:11]} Ke6 {[%emt 0:00:24]} 42. Kg4 {[%emt 0:00:17]} Nd3 {[%emt 0:00:14]} 43. Kg5 {[%emt 0:00:09]} Ne1 {[%emt 0:00:09]} 44. f4 {[%emt 0:00:10]} exf4 {[%emt 0:00:27]} 45. Kxf4 {[%emt 0:00:06]} Nc2 {[%emt 0:00:19]} 46. b5 {[%emt 0:01:28]} cxb5 {[%emt 0:00:07]} 47. cxb5 {[%emt 0:00:07]} Nxa3 {[%emt 0:00:10]} 48. e5 {[%emt 0:00:13]} Nxb5 {[%emt 0:00:04]} 0-1

[Event "FIDE Women World Rapid 2024"]
[Site "New York"]
[Date "2024.12.27"]
[Round "8.24"]
[White "Mamedjarova, Zeinab"]
[Black "Sargsyan, Anna M."]
[Result "0-1"]
[ECO "D04"]
[WhiteElo "2145"]
[BlackElo "2361"]
[Annotator "ChessBase"]
[PlyCount "62"]
[EventDate "2024.12.14"]
[EventType "swiss"]
[EventCountry "USA"]
[SourceTitle "playchess.com"]
[Source "ChessBase"]
[SourceQuality "1"]
[TimeControl "900+10"]

1. d4 {[%emt 0:00:03]} Nf6 {[%emt 0:00:02]} 2. Nf3 {[%emt 0:00:03]} d5 {[%emt 0:00:01]} 3. e3 {[%emt 0:00:13]} c6 {[%emt 0:00:09]} 4. Be2 {[%emt 0:00:09]} Bf5 {[%emt 0:00:02]} 5. O-O {[%emt 0:00:02]} e6 {[%emt 0:00:07]} 6. b3 {[%emt 0:00:19]} Bd6 {[%emt 0:00:16]} 7. Bb2 {[%emt 0:00:02]} Nbd7 {[%emt 0:00:02]} 8. Nbd2 {[%emt 0:01:13]} Qb8 {[%emt 0:00:16]} 9. h3 {[%emt 0:01:01]} h6 {[%emt 0:00:07]} 10. Bd3 {[%emt 0:00:18]} O-O {[%emt 0:00:03]} 11. Qe2 {[%emt 0:00:05]} Ne4 {[%emt 0:00:28]} 12. c4 {[%emt 0:01:14]} Bh7 {[%emt 0:00:34]} 13. Bxe4 {[%emt 0:00:00]} dxe4 {[%emt 0:00:02]} 14. Ne1 {[%emt 0:00:00]} e5 {[%emt 0:00:55]} 15. c5 {[%emt 0:03:41]} Bc7 {[%emt 0:00:07]} 16. Nc4 {[%emt 0:00:02]} exd4 {[%emt 0:00:25]} 17. Bxd4 {[%emt 0:00:05]} b5 {[%emt 0:00:12]} 18. cxb6 {[%emt 0:00:54]} axb6 {[%emt 0:01:02]} 19. Bxg7 {[%emt 0:02:50]} Kxg7 {[%emt 0:00:01]} 20. Qg4+ {[%emt 0:00:04]} Bg6 {[%emt 0:00:03]} 21. Qxd7 {[%emt 0:00:04]} b5 {[%emt 0:00:02]} 22. Nb2 {[%emt 0:01:15]} Bh2+ {[%emt 0:00:03]} 23. Kh1 {[%emt 0:00:02]} Be5 {[%emt 0:00:01]} 24. Qd2 {[%emt 0:00:15]} Qd8 {[%emt 0:00:02]} 25. Rd1 {[%emt 0:05:02]} Qf6 {[%emt 0:01:50]} 26. Rb1 {[%emt 0:00:02]} Rxa2 {[%emt 0:00:19]} 27. f4 {[%emt 0:00:03]} exf3 {[%emt 0:01:21]} 28. Rxf3 {[%emt 0:00:23]} Qd8 {[%emt 0:00:02]} 29. Qxd8 {[%emt 0:00:23]} Rxd8 {[%emt 0:00:03]} 30. Rd1 {[%emt 0:00:12]} Rxd1 {[%emt 0:00:08]} 31. Nxd1 {[%emt 0:00:02]} Ra1 {[%emt 0:00:02]} 0-1